[Event "*** SCC Grand Prix: Titled Tuesday Blitz"]
[Site "Chess.com"]
[Date "2020.09.08"]
[Round "9"]
[White "politeplayer"]
[Black "Mikhail_Golubev"]
[Result "1-0"]
[WhiteElo "2258"]
[BlackElo "2545"]
[TimeControl "180+1"]
[EndTime "11:47:33 PDT"]
[Termination "politeplayer won on time"]

1. e4 {[%clk 0:03:00.9]} 1... c5 {[%clk 0:02:59.1]} 2. Nf3 {[%clk 0:03:01.2]}
2... d6 {[%clk 0:02:59.1]} 3. d4 {[%clk 0:03:01.5]} 3... Nf6 {[%clk 0:02:58.1]}
4. Nc3 {[%clk 0:03:00.1]} 4... cxd4 {[%clk 0:02:58.1]} 5. Nxd4 {[%clk
0:03:00.5]} 5... Nc6 {[%clk 0:02:58.2]} 6. Bc4 {[%clk 0:02:55.3]} 6... e6 {[%clk
0:02:57.7]} 7. Be3 {[%clk 0:02:46.7]} 7... a6 {[%clk 0:02:54]} 8. a4 {[%clk
0:02:38.5]} 8... Be7 {[%clk 0:02:48.4]} 9. Ba2 {[%clk 0:02:34.3]} 9... O-O
{[%clk 0:02:47.2]} 10. O-O {[%clk 0:02:33.4]} 10... d5 {[%clk 0:02:32.4]} 11.
Nxc6 {[%clk 0:02:23.2]} 11... bxc6 {[%clk 0:02:31.7]} 12. exd5 {[%clk
0:02:07.7]} 12... cxd5 {[%clk 0:02:30.1]} 13. a5 {[%clk 0:02:05.6]} 13... Bb7
{[%clk 0:02:25.7]} 14. Na4 {[%clk 0:01:55.1]} 14... Rc8 {[%clk 0:02:24.4]} 15.
Nb6 {[%clk 0:01:47.4]} 15... Rc7 {[%clk 0:02:22.3]} 16. c3 {[%clk 0:01:25]}
16... Bc5 {[%clk 0:01:56.5]} 17. Bf4 {[%clk 0:01:17.2]} 17... Bd6 {[%clk
0:01:55.5]} 18. Bxd6 {[%clk 0:01:12.7]} 18... Qxd6 {[%clk 0:01:54.9]} 19. Re1
{[%clk 0:01:06.6]} 19... e5 {[%clk 0:01:48.4]} 20. Nc4 {[%clk 0:01:03.8]} 20...
Rxc4 {[%clk 0:01:43.2]} 21. Bxc4 {[%clk 0:01:03]} 21... Qc5 {[%clk 0:01:42.3]}
22. Bf1 {[%clk 0:00:59.4]} 22... Re8 {[%clk 0:01:40.3]} 23. Rc1 {[%clk
0:00:50.5]} 23... Qxa5 {[%clk 0:01:31.7]} 24. Qb3 {[%clk 0:00:49.1]} 24... Bc6
{[%clk 0:01:26.6]} 25. Ra1 {[%clk 0:00:47.1]} 25... Qc5 {[%clk 0:01:26.4]} 26.
Rxa6 {[%clk 0:00:43.4]} 26... Rc8 {[%clk 0:00:41.6]} 27. Qb6 {[%clk 0:00:37.7]}
27... Qd6 {[%clk 0:00:35.5]} 28. Qe3 {[%clk 0:00:30.7]} 28... e4 {[%clk
0:00:28.4]} 29. b4 {[%clk 0:00:23.1]} 29... Qe5 {[%clk 0:00:17.3]} 30. b5 {[%clk
0:00:20.7]} 30... Bd7 {[%clk 0:00:16.6]} 31. Ra7 {[%clk 0:00:18.3]} 31... Rxc3
{[%clk 0:00:13.5]} 32. Ra8+ {[%clk 0:00:14.8]} 32... Be8 {[%clk 0:00:13.4]} 33.
Qb6 {[%clk 0:00:09.9]} 33... h6 {[%clk 0:00:07.9]} 34. Qd8 {[%clk 0:00:09.1]}
34... Kh7 {[%clk 0:00:06.4]} 35. b6 {[%clk 0:00:09]} 35... Ng4 {[%clk 0:00:06]}
36. Qb8 {[%clk 0:00:07.4]} 36... Qd4 {[%clk 0:00:04.3]} 37. Qxe8 {[%clk
0:00:06.2]} 37... Qxf2+ {[%clk 0:00:02.5]} 38. Kh1 {[%clk 0:00:06.1]} 38... Qxe1
{[%clk 0:00:02.1]} 39. Qxf7 {[%clk 0:00:04.3]} 39... Rf3 {[%clk 0:00:02]} 40.
Qg8+ {[%clk 0:00:03.7]} 40... Kg6 {[%clk 0:00:02.1]} 41. Qe6+ {[%clk 0:00:03.5]}
41... Nf6 {[%clk 0:00:02.2]} 42. Qf7+ {[%clk 0:00:01.5]} 42... Kxf7 {[%clk
0:00:01.4]} 43. Ra7+ {[%clk 0:00:02.1]} 43... Kg6 {[%clk 0:00:01.5]} 44. Ra1
{[%clk 0:00:02.1]} 1-0

[Event "*** SCC Grand Prix: Titled Tuesday Blitz"]
[Site "Chess.com"]
[Date "2020.09.08"]
[Round "9"]
[White "Sacbutt"]
[Black "DishonorOnYourCow"]
[Result "0-1"]
[WhiteElo "2212"]
[BlackElo "2343"]
[TimeControl "180+1"]
[EndTime "11:47:34 PDT"]
[Termination "DishonorOnYourCow won by checkmate"]

1. d4 {[%clk 0:03:00.9]} 1... Nf6 {[%clk 0:02:59.2]} 2. c4 {[%clk 0:03:00.8]}
2... g6 {[%clk 0:02:59.6]} 3. Nc3 {[%clk 0:03:00.6]} 3... d5 {[%clk 0:02:59.9]}
4. cxd5 {[%clk 0:03:01.3]} 4... Nxd5 {[%clk 0:03:00.8]} 5. e4 {[%clk 0:03:01.9]}
5... Nxc3 {[%clk 0:03:01.3]} 6. bxc3 {[%clk 0:03:02.7]} 6... Bg7 {[%clk
0:03:01.8]} 7. Nf3 {[%clk 0:03:02.6]} 7... c5 {[%clk 0:03:01.1]} 8. Rb1 {[%clk
0:03:03]} 8... Nc6 {[%clk 0:02:44.2]} 9. Be3 {[%clk 0:03:02.3]} 9... Qa5 {[%clk
0:02:41.9]} 10. Qd2 {[%clk 0:03:01.7]} 10... O-O {[%clk 0:02:33.2]} 11. e5
{[%clk 0:02:46.5]} 11... Rd8 {[%clk 0:02:24.8]} 12. Rb5 {[%clk 0:02:43.3]} 12...
Qa3 {[%clk 0:02:10.7]} 13. Rxc5 {[%clk 0:02:41.8]} 13... Qxc5 {[%clk 0:02:01.3]}
14. dxc5 {[%clk 0:02:42.7]} 14... Rxd2 {[%clk 0:02:01.2]} 15. Bxd2 {[%clk
0:02:38]} 15... Nxe5 {[%clk 0:02:01]} 16. Nxe5 {[%clk 0:02:37]} 16... Bxe5
{[%clk 0:02:01.9]} 17. Bc4 {[%clk 0:02:30]} 17... Bf5 {[%clk 0:01:56.2]} 18. Bd5
{[%clk 0:02:28.4]} 18... Rc8 {[%clk 0:01:46]} 19. O-O {[%clk 0:01:40.5]} 19...
Rxc5 {[%clk 0:01:40.3]} 20. Bxb7 {[%clk 0:01:39.9]} 20... Bxc3 {[%clk
0:01:25.7]} 21. Rc1 {[%clk 0:01:29.3]} 21... Bd4 {[%clk 0:01:21.4]} 22. Rxc5
{[%clk 0:01:18.3]} 22... Bxc5 {[%clk 0:01:22.3]} 23. Ba6 {[%clk 0:01:02]} 23...
Be6 {[%clk 0:01:15.5]} 24. a4 {[%clk 0:01:01.6]} 24... Bd7 {[%clk 0:01:08.5]}
25. a5 {[%clk 0:01:00.3]} 25... Kg7 {[%clk 0:00:52]} 26. Bc3+ {[%clk 0:00:58.1]}
26... f6 {[%clk 0:00:51.2]} 27. Kf1 {[%clk 0:00:57.9]} 27... Kf7 {[%clk
0:00:49.3]} 28. Ke2 {[%clk 0:00:51.5]} 28... Ke6 {[%clk 0:00:46.9]} 29. Bc4+
{[%clk 0:00:49.4]} 29... Kd6 {[%clk 0:00:44.9]} 30. Bg8 {[%clk 0:00:48.9]} 30...
h6 {[%clk 0:00:44.3]} 31. Bf7 {[%clk 0:00:49]} 31... g5 {[%clk 0:00:44.1]} 32.
Bc4 {[%clk 0:00:44.4]} 32... Bc6 {[%clk 0:00:38.1]} 33. f3 {[%clk 0:00:44.1]}
33... h5 {[%clk 0:00:28.4]} 34. h3 {[%clk 0:00:28.2]} 34... Bd7 {[%clk
0:00:10.3]} 35. Bd2 {[%clk 0:00:28.1]} 35... g4 {[%clk 0:00:09.8]} 36. hxg4
{[%clk 0:00:26.9]} 36... hxg4 {[%clk 0:00:10.7]} 37. Bc3 {[%clk 0:00:26.3]}
37... gxf3+ {[%clk 0:00:10.4]} 38. gxf3 {[%clk 0:00:26.9]} 38... Bc6 {[%clk
0:00:11]} 39. Bd2 {[%clk 0:00:24.1]} 39... Bd5 {[%clk 0:00:10.5]} 40. Bb5 {[%clk
0:00:22.1]} 40... e5 {[%clk 0:00:09.8]} 41. Bh6 {[%clk 0:00:20.8]} 41... Bd4
{[%clk 0:00:07.6]} 42. Bf8+ {[%clk 0:00:19.5]} 42... Ke6 {[%clk 0:00:07.7]} 43.
Bb4 {[%clk 0:00:18.8]} 43... f5 {[%clk 0:00:07.2]} 44. Bd3 {[%clk 0:00:18]}
44... Kf6 {[%clk 0:00:05]} 45. Bb5 {[%clk 0:00:17]} 45... Kg5 {[%clk 0:00:03.5]}
46. Bd7 {[%clk 0:00:15.4]} 46... e4 {[%clk 0:00:02.8]} 47. fxe4 {[%clk
0:00:15.4]} 47... Bxe4 {[%clk 0:00:03.7]} 48. Bc8 {[%clk 0:00:15.6]} 48... f4
{[%clk 0:00:04.1]} 49. a6 {[%clk 0:00:15.2]} 49... f3+ {[%clk 0:00:04]} 50. Kf1
{[%clk 0:00:15.1]} 50... f2 {[%clk 0:00:03.3]} 51. Bb7 {[%clk 0:00:09.8]} 51...
Bd3+ {[%clk 0:00:03]} 52. Kg2 {[%clk 0:00:09.6]} 52... f1=Q+ {[%clk 0:00:03.9]}
53. Kg3 {[%clk 0:00:09.5]} 53... Be5# {[%clk 0:00:04.2]} 0-1

[Event "*** SCC Grand Prix: Titled Tuesday Blitz"]
[Site "Chess.com"]
[Date "2020.09.08"]
[Round "9"]
[White "gagtemp"]
[Black "sorrm8thatscheckm8"]
[Result "0-1"]
[WhiteElo "1949"]
[BlackElo "2441"]
[TimeControl "180+1"]
[EndTime "11:47:36 PDT"]
[Termination "sorrm8thatscheckm8 won on time"]

1. e4 {[%clk 0:03:00.9]} 1... e6 {[%clk 0:02:59.5]} 2. d4 {[%clk 0:02:59.8]}
2... d5 {[%clk 0:02:58.3]} 3. Nc3 {[%clk 0:02:59.7]} 3... Bb4 {[%clk 0:02:57.5]}
4. e5 {[%clk 0:02:59.7]} 4... b6 {[%clk 0:02:57.2]} 5. f4 {[%clk 0:02:51]} 5...
h5 {[%clk 0:02:55.3]} 6. Nf3 {[%clk 0:02:49.9]} 6... Nh6 {[%clk 0:02:55.4]} 7.
Be3 {[%clk 0:02:46.8]} 7... Nf5 {[%clk 0:02:55.5]} 8. Bf2 {[%clk 0:02:42.3]}
8... Bb7 {[%clk 0:02:54.6]} 9. Qd2 {[%clk 0:02:35]} 9... Nc6 {[%clk 0:02:49.6]}
10. a3 {[%clk 0:02:32.9]} 10... Be7 {[%clk 0:02:48.9]} 11. O-O-O {[%clk
0:02:29.2]} 11... Na5 {[%clk 0:02:48.4]} 12. Kb1 {[%clk 0:02:26.1]} 12... Qd7
{[%clk 0:02:47.8]} 13. Bb5 {[%clk 0:02:17.3]} 13... c6 {[%clk 0:02:47.4]} 14.
Bd3 {[%clk 0:02:16.5]} 14... O-O-O {[%clk 0:02:46.3]} 15. Rhe1 {[%clk
0:02:12.1]} 15... Kb8 {[%clk 0:02:45.6]} 16. Bxf5 {[%clk 0:02:00.6]} 16... exf5
{[%clk 0:02:46.5]} 17. Ng5 {[%clk 0:01:59.4]} 17... Bxg5 {[%clk 0:02:35]} 18.
fxg5 {[%clk 0:01:58.6]} 18... g6 {[%clk 0:02:35.1]} 19. h4 {[%clk 0:01:53.2]}
19... Ba6 {[%clk 0:02:34.7]} 20. Bg3 {[%clk 0:01:44.7]} 20... Ka8 {[%clk
0:02:32.7]} 21. Na2 {[%clk 0:01:36.6]} 21... Rhe8 {[%clk 0:02:22.8]} 22. Nb4
{[%clk 0:01:33.9]} 22... Bb7 {[%clk 0:02:22]} 23. Qf4 {[%clk 0:01:25.4]} 23...
Re6 {[%clk 0:02:21.8]} 24. Nd3 {[%clk 0:01:22.4]} 24... Nc4 {[%clk 0:02:21.2]}
25. Ka2 {[%clk 0:01:20]} 25... Qe7 {[%clk 0:02:17.8]} 26. Nb4 {[%clk 0:01:15.1]}
26... a5 {[%clk 0:02:17.2]} 27. Nd3 {[%clk 0:01:13.6]} 27... Ba6 {[%clk
0:02:15.7]} 28. Nf2 {[%clk 0:01:10.6]} 28... Rb8 {[%clk 0:02:10.3]} 29. Qc1
{[%clk 0:01:10.1]} 29... a4 {[%clk 0:01:56.3]} 30. Nd3 {[%clk 0:01:09.2]} 30...
c5 {[%clk 0:01:34.6]} 31. Nf4 {[%clk 0:01:01.8]} 31... Na5 {[%clk 0:01:29.5]}
32. Nxe6 {[%clk 0:00:59.9]} 32... fxe6 {[%clk 0:01:28.7]} 33. dxc5 {[%clk
0:00:56.5]} 33... bxc5 {[%clk 0:01:28.6]} 34. Qd2 {[%clk 0:00:52.5]} 34... Nc4
{[%clk 0:01:26.5]} 35. Qc3 {[%clk 0:00:40.6]} 35... Qb7 {[%clk 0:01:14.1]} 36.
Rb1 {[%clk 0:00:39.1]} 36... d4 {[%clk 0:01:13.7]} 37. Qf3 {[%clk 0:00:33.1]}
37... Qxf3 {[%clk 0:01:04.2]} 38. gxf3 {[%clk 0:00:32.5]} 38... Nd2 {[%clk
0:01:04.9]} 39. f4 {[%clk 0:00:28]} 39... Nxb1 {[%clk 0:01:03.1]} 40. Kxb1
{[%clk 0:00:27.3]} 40... d3 {[%clk 0:01:00.5]} 41. cxd3 {[%clk 0:00:25.8]} 41...
Bxd3+ {[%clk 0:01:00.8]} 42. Kc1 {[%clk 0:00:25.9]} 42... c4 {[%clk 0:00:55.6]}
43. Bf2 {[%clk 0:00:24.6]} 43... Kb7 {[%clk 0:00:56.1]} 44. Bc5 {[%clk
0:00:23.6]} 44... Kc6 {[%clk 0:00:55.9]} 45. Bb4 {[%clk 0:00:21.4]} 45... Rb5
{[%clk 0:00:55.6]} 46. Kd2 {[%clk 0:00:20.6]} 46... Kd5 {[%clk 0:00:51.3]} 47.
Kc3 {[%clk 0:00:19.8]} 47... Rb7 {[%clk 0:00:51.4]} 48. Re3 {[%clk 0:00:19.4]}
48... Kc6 {[%clk 0:00:51.1]} 49. Re1 {[%clk 0:00:19.3]} 49... Kb5 {[%clk
0:00:51.5]} 50. Re3 {[%clk 0:00:19.2]} 50... Rd7 {[%clk 0:00:51.9]} 51. Re1
{[%clk 0:00:19.4]} 51... Be4 {[%clk 0:00:50.8]} 52. Bd6 {[%clk 0:00:17.4]} 52...
Bd3 {[%clk 0:00:47]} 53. Re3 {[%clk 0:00:17.2]} 53... Kc6 {[%clk 0:00:45.9]} 54.
Re1 {[%clk 0:00:17]} 54... Rb7 {[%clk 0:00:45.7]} 55. Bb4 {[%clk 0:00:12]} 55...
Rb5 {[%clk 0:00:45.8]} 56. Re3 {[%clk 0:00:11.2]} 56... Rd5 {[%clk 0:00:46]} 57.
Bd6 {[%clk 0:00:09.4]} 57... Kb5 {[%clk 0:00:46.3]} 58. Re1 {[%clk 0:00:08.3]}
58... Be4 {[%clk 0:00:46.7]} 0-1

[Event "*** SCC Grand Prix: Titled Tuesday Blitz"]
[Site "Chess.com"]
[Date "2020.09.08"]
[Round "9"]
[White "sergeikim"]
[Black "sokidze"]
[Result "0-1"]
[WhiteElo "2474"]
[BlackElo "2615"]
[TimeControl "180+1"]
[EndTime "11:47:39 PDT"]
[Termination "sokidze won on time"]

1. d4 {[%clk 0:03:00.9]} 1... Nf6 {[%clk 0:02:59.8]} 2. c4 {[%clk 0:03:00.7]}
2... e6 {[%clk 0:02:59.7]} 3. Nc3 {[%clk 0:03:00.7]} 3... Bb4 {[%clk 0:02:59.7]}
4. Qc2 {[%clk 0:03:00.8]} 4... d5 {[%clk 0:02:59.8]} 5. a3 {[%clk 0:03:00.9]}
5... Bxc3+ {[%clk 0:02:59.8]} 6. Qxc3 {[%clk 0:03:01.8]} 6... O-O {[%clk
0:03:00.5]} 7. Nf3 {[%clk 0:03:01.8]} 7... dxc4 {[%clk 0:03:00]} 8. Qxc4 {[%clk
0:03:01.3]} 8... b6 {[%clk 0:03:00.9]} 9. g3 {[%clk 0:03:00.3]} 9... Ba6 {[%clk
0:02:59.1]} 10. Qc2 {[%clk 0:03:00]} 10... Bb7 {[%clk 0:02:49.4]} 11. Bg2 {[%clk
0:02:58.1]} 11... Nbd7 {[%clk 0:02:49.7]} 12. O-O {[%clk 0:02:56.6]} 12... c5
{[%clk 0:02:49.5]} 13. Rd1 {[%clk 0:02:55.9]} 13... cxd4 {[%clk 0:02:39.8]} 14.
Nxd4 {[%clk 0:02:51.2]} 14... Bxg2 {[%clk 0:02:39]} 15. Kxg2 {[%clk 0:02:51.1]}
15... Rc8 {[%clk 0:02:39.6]} 16. Qa4 {[%clk 0:01:53.4]} 16... Qc7 {[%clk
0:02:37.4]} 17. Bg5 {[%clk 0:01:44.9]} 17... Ne4 {[%clk 0:02:28.7]} 18. Be3
{[%clk 0:01:39.6]} 18... Ndc5 {[%clk 0:02:24]} 19. Qb4 {[%clk 0:01:30.9]} 19...
Nf6 {[%clk 0:02:16.3]} 20. f3 {[%clk 0:01:27.2]} 20... Nd5 {[%clk 0:02:14.8]}
21. Qd2 {[%clk 0:01:26.2]} 21... Rfd8 {[%clk 0:01:57.1]} 22. Bf2 {[%clk
0:01:25.4]} 22... Qb7 {[%clk 0:01:56.6]} 23. Qg5 {[%clk 0:01:21.2]} 23... h6
{[%clk 0:01:50.1]} 24. Qe5 {[%clk 0:01:17]} 24... Nd7 {[%clk 0:01:27.9]} 25. Qh5
{[%clk 0:01:12.8]} 25... N5f6 {[%clk 0:01:22.6]} 26. Qh4 {[%clk 0:01:12.3]}
26... Ne5 {[%clk 0:01:19.3]} 27. Rac1 {[%clk 0:01:01.3]} 27... Nd5 {[%clk
0:01:14.1]} 28. Qe4 {[%clk 0:00:57]} 28... Nc4 {[%clk 0:01:09.1]} 29. Nxe6
{[%clk 0:00:28.6]} 29... fxe6 {[%clk 0:00:43.8]} 30. Rxc4 {[%clk 0:00:22.6]}
30... Rxc4 {[%clk 0:00:34.9]} 31. Qxc4 {[%clk 0:00:16.1]} 31... Nf4+ {[%clk
0:00:34.6]} 32. gxf4 {[%clk 0:00:12.9]} 32... Rxd1 {[%clk 0:00:34.7]} 33. Qxe6+
{[%clk 0:00:13.4]} 33... Qf7 {[%clk 0:00:33.3]} 34. Qxf7+ {[%clk 0:00:11.1]}
34... Kxf7 {[%clk 0:00:33.5]} 35. Kg3 {[%clk 0:00:10.2]} 35... Rd2 {[%clk
0:00:33.3]} 36. e4 {[%clk 0:00:09.8]} 36... Rxb2 {[%clk 0:00:33.4]} 37. f5
{[%clk 0:00:09.7]} 37... b5 {[%clk 0:00:29]} 38. Bxa7 {[%clk 0:00:07.8]} 38...
Rb3 {[%clk 0:00:28.5]} 39. Bc5 {[%clk 0:00:07.3]} 39... Rc3 {[%clk 0:00:28.3]}
40. Bb4 {[%clk 0:00:06.9]} 40... Rd3 {[%clk 0:00:28.4]} 41. h4 {[%clk
0:00:06.9]} 41... Kf6 {[%clk 0:00:28.3]} 42. Kf4 {[%clk 0:00:06.8]} 42... g5+
{[%clk 0:00:22.7]} 43. fxg6 {[%clk 0:00:06.3]} 43... Kxg6 {[%clk 0:00:23.2]} 44.
Kg4 {[%clk 0:00:05.6]} 44... h5+ {[%clk 0:00:22.6]} 45. Kf4 {[%clk 0:00:05.6]}
45... Kf6 {[%clk 0:00:23.3]} 46. Bc5 {[%clk 0:00:02.9]} 46... Ke6 {[%clk
0:00:22.7]} 47. Bb4 {[%clk 0:00:02.6]} 47... Rd1 {[%clk 0:00:19.1]} 48. Kg5
{[%clk 0:00:01.9]} 48... Rg1+ {[%clk 0:00:14.4]} 49. Kxh5 {[%clk 0:00:01.4]}
49... Ke5 {[%clk 0:00:15.3]} 0-1

[Event "*** SCC Grand Prix: Titled Tuesday Blitz"]
[Site "Chess.com"]
[Date "2020.09.08"]
[Round "9"]
[White "TudorAnton"]
[Black "barriochess"]
[Result "0-1"]
[WhiteElo "2544"]
[BlackElo "2392"]
[TimeControl "180+1"]
[EndTime "11:47:39 PDT"]
[Termination "barriochess won by resignation"]

1. d4 {[%clk 0:00:24]} 1... Nf6 {[%clk 0:02:57.4]} 2. c4 {[%clk 0:00:23.7]} 2...
g6 {[%clk 0:02:56.4]} 3. Nf3 {[%clk 0:00:24.6]} 3... Bg7 {[%clk 0:02:55.8]} 4.
g3 {[%clk 0:00:25.1]} 4... O-O {[%clk 0:02:55.4]} 5. Bg2 {[%clk 0:00:25.3]} 5...
d6 {[%clk 0:02:55.5]} 6. O-O {[%clk 0:00:26]} 6... c6 {[%clk 0:02:55.3]} 7. h3
{[%clk 0:00:26.6]} 7... Ne4 {[%clk 0:02:48.4]} 8. Nc3 {[%clk 0:00:27.5]} 8... f5
{[%clk 0:02:43.9]} 9. Nxe4 {[%clk 0:00:27.1]} 9... fxe4 {[%clk 0:02:43.9]} 10.
Ng5 {[%clk 0:00:27.7]} 10... d5 {[%clk 0:02:44]} 11. cxd5 {[%clk 0:00:28.3]}
11... cxd5 {[%clk 0:02:44]} 12. h4 {[%clk 0:00:28.6]} 12... Nc6 {[%clk
0:02:40.7]} 13. Be3 {[%clk 0:00:28]} 13... Bf5 {[%clk 0:02:34.3]} 14. Rc1 {[%clk
0:00:26.6]} 14... Qd7 {[%clk 0:02:33.9]} 15. Kh2 {[%clk 0:00:26.4]} 15... Rad8
{[%clk 0:02:22.5]} 16. Nh3 {[%clk 0:00:26.3]} 16... e5 {[%clk 0:02:20.3]} 17.
dxe5 {[%clk 0:00:25.7]} 17... Nxe5 {[%clk 0:02:21.2]} 18. Nf4 {[%clk 0:00:24.1]}
18... Ng4+ {[%clk 0:02:19]} 19. Kg1 {[%clk 0:00:24.4]} 19... Bxb2 {[%clk
0:02:16.5]} 20. Rb1 {[%clk 0:00:21.3]} 20... Nxe3 {[%clk 0:02:13]} 21. fxe3
{[%clk 0:00:20.7]} 21... Be5 {[%clk 0:02:09.9]} 22. Qb3 {[%clk 0:00:21.5]} 22...
Rf7 {[%clk 0:01:55.3]} 23. Rfd1 {[%clk 0:00:21]} 23... Bxf4 {[%clk 0:01:23.1]}
24. exf4 {[%clk 0:00:20.8]} 24... d4 {[%clk 0:01:07.5]} 25. Rb2 {[%clk
0:00:19.1]} 25... h5 {[%clk 0:00:37.7]} 26. Rbd2 {[%clk 0:00:18.7]} 26... d3
{[%clk 0:00:37.3]} 27. exd3 {[%clk 0:00:17.6]} 27... exd3 {[%clk 0:00:37.2]} 28.
Bf1 {[%clk 0:00:16.7]} 28... Qd4+ {[%clk 0:00:36]} 29. Kh2 {[%clk 0:00:16.3]}
29... Kg7 {[%clk 0:00:17.4]} 30. Bxd3 {[%clk 0:00:16.8]} 30... Bxd3 {[%clk
0:00:17.2]} 31. Rxd3 {[%clk 0:00:17.7]} 31... Qf2+ {[%clk 0:00:15.9]} 32. Kh3
{[%clk 0:00:17.5]} 32... Rxd3 {[%clk 0:00:14.5]} 33. Qxd3 {[%clk 0:00:18.1]}
33... Qxa2 {[%clk 0:00:14.4]} 34. Qd4+ {[%clk 0:00:18.6]} 34... Kh7 {[%clk
0:00:14.2]} 35. f5 {[%clk 0:00:17.6]} 35... gxf5 {[%clk 0:00:08.4]} 36. Qe3
{[%clk 0:00:16.7]} 36... Qc4 {[%clk 0:00:05.6]} 37. Qg5 {[%clk 0:00:14.6]} 37...
Qg4+ {[%clk 0:00:05.2]} 38. Qxg4 {[%clk 0:00:14.5]} 38... fxg4+ {[%clk
0:00:06.1]} 39. Kg2 {[%clk 0:00:15.4]} 39... Kg6 {[%clk 0:00:06.3]} 40. Rd6+
{[%clk 0:00:15.8]} 40... Rf6 {[%clk 0:00:06.5]} 41. Rd5 {[%clk 0:00:16.7]} 41...
Rb6 {[%clk 0:00:06.7]} 42. Rd7 {[%clk 0:00:17.3]} 42... Kh6 {[%clk 0:00:06.7]}
43. Kf2 {[%clk 0:00:17.5]} 43... a5 {[%clk 0:00:07.2]} 44. Ke3 {[%clk
0:00:17.7]} 44... a4 {[%clk 0:00:07.6]} 45. Rd4 {[%clk 0:00:18.3]} 45... Ra6
{[%clk 0:00:07.3]} 46. Rd2 {[%clk 0:00:17]} 46... a3 {[%clk 0:00:07.4]} 47. Ra2
{[%clk 0:00:17.6]} 47... b5 {[%clk 0:00:07.9]} 48. Kd4 {[%clk 0:00:18.3]} 48...
b4 {[%clk 0:00:08.3]} 49. Kc4 {[%clk 0:00:19.2]} 49... Rb6 {[%clk 0:00:08.7]}
50. Kb3 {[%clk 0:00:19.9]} 50... Rb8 {[%clk 0:00:08.5]} 51. Rf2 {[%clk
0:00:20.2]} 51... Kg6 {[%clk 0:00:08.6]} 52. Rd2 {[%clk 0:00:20.2]} 52... Ra8
{[%clk 0:00:08.9]} 53. Ka2 {[%clk 0:00:19.2]} 53... b3+ {[%clk 0:00:08.5]} 54.
Kxb3 {[%clk 0:00:19.5]} 54... a2 {[%clk 0:00:09.1]} 55. Rxa2 {[%clk 0:00:19.3]}
55... Rxa2 {[%clk 0:00:10]} 56. Kxa2 {[%clk 0:00:20]} 56... Kf5 {[%clk
0:00:10.5]} 57. Kb3 {[%clk 0:00:20.9]} 57... Ke4 {[%clk 0:00:11.4]} 58. Kc4
{[%clk 0:00:21.3]} 58... Kf3 {[%clk 0:00:12.3]} 59. Kd5 {[%clk 0:00:22]} 59...
Kxg3 {[%clk 0:00:13.2]} 60. Ke5 {[%clk 0:00:22.9]} 60... Kxh4 {[%clk 0:00:13.8]}
61. Kf4 {[%clk 0:00:23.4]} 61... Kh3 {[%clk 0:00:14.4]} 62. Kg5 {[%clk
0:00:23.5]} 62... g3 {[%clk 0:00:15.3]} 63. Kxh5 {[%clk 0:00:24.4]} 63... g2
{[%clk 0:00:15.9]} 64. Kg5 {[%clk 0:00:25.3]} 64... g1=Q+ {[%clk 0:00:16.3]} 65.
Kf4 {[%clk 0:00:26.2]} 0-1

[Event "*** SCC Grand Prix: Titled Tuesday Blitz"]
[Site "Chess.com"]
[Date "2020.09.08"]
[Round "9"]
[White "RobPeresian"]
[Black "IroniaSudby"]
[Result "0-1"]
[WhiteElo "2362"]
[BlackElo "2508"]
[TimeControl "180+1"]
[EndTime "11:47:39 PDT"]
[Termination "IroniaSudby won by resignation"]

1. Nf3 {[%clk 0:03:00.9]} 1... Nf6 {[%clk 0:02:59.8]} 2. c4 {[%clk 0:02:45]}
2... b6 {[%clk 0:02:59.6]} 3. g3 {[%clk 0:02:36.5]} 3... Bb7 {[%clk 0:02:59.6]}
4. Bg2 {[%clk 0:02:31]} 4... c5 {[%clk 0:02:59.8]} 5. O-O {[%clk 0:02:31.1]}
5... g6 {[%clk 0:03:00.4]} 6. Nc3 {[%clk 0:02:30.9]} 6... Bg7 {[%clk 0:03:00.3]}
7. Re1 {[%clk 0:02:31.6]} 7... O-O {[%clk 0:02:58]} 8. e4 {[%clk 0:02:32.1]}
8... d6 {[%clk 0:02:58.6]} 9. d4 {[%clk 0:02:32.6]} 9... cxd4 {[%clk 0:02:58.8]}
10. Nxd4 {[%clk 0:02:33.5]} 10... Qc7 {[%clk 0:02:44]} 11. Be3 {[%clk
0:02:32.9]} 11... a6 {[%clk 0:02:43.8]} 12. Nd5 {[%clk 0:02:10.7]} 12... Qd8
{[%clk 0:02:40.2]} 13. Nxf6+ {[%clk 0:01:44.7]} 13... exf6 {[%clk 0:02:31.3]}
14. Rc1 {[%clk 0:01:37.1]} 14... Re8 {[%clk 0:02:30.9]} 15. f3 {[%clk
0:01:21.6]} 15... Nd7 {[%clk 0:02:31]} 16. b3 {[%clk 0:01:07.9]} 16... Ne5
{[%clk 0:02:21.8]} 17. Qd2 {[%clk 0:01:04.3]} 17... Rc8 {[%clk 0:01:58.5]} 18.
h3 {[%clk 0:01:03.3]} 18... b5 {[%clk 0:01:46.6]} 19. cxb5 {[%clk 0:01:01.9]}
19... Rxc1 {[%clk 0:01:45.9]} 20. Rxc1 {[%clk 0:00:58.9]} 20... f5 {[%clk
0:01:36.3]} 21. bxa6 {[%clk 0:00:22.5]} 21... Bxa6 {[%clk 0:01:36.5]} 22. exf5
{[%clk 0:00:19.8]} 22... Nd3 {[%clk 0:01:28.4]} 23. Rd1 {[%clk 0:00:12.9]} 23...
Nb2 {[%clk 0:01:06.6]} 24. Rb1 {[%clk 0:00:07.9]} 24... Qe7 {[%clk 0:00:57.3]}
25. fxg6 {[%clk 0:00:01.9]} 25... Qxe3+ {[%clk 0:00:56.3]} 26. Qxe3 {[%clk
0:00:02.3]} 26... Rxe3 {[%clk 0:00:56.6]} 27. Nf5 {[%clk 0:00:02.3]} 27... Re2
{[%clk 0:00:50.6]} 28. Nxg7 {[%clk 0:00:02.9]} 28... Kxg7 {[%clk 0:00:46.4]} 29.
Bf1 {[%clk 0:00:03.6]} 29... Bd3 {[%clk 0:00:42.6]} 30. Bxe2 {[%clk 0:00:02.2]}
30... Bxb1 {[%clk 0:00:42.3]} 31. gxf7 {[%clk 0:00:03.1]} 31... Kxf7 {[%clk
0:00:42.4]} 32. a4 {[%clk 0:00:03.6]} 32... Bc2 {[%clk 0:00:41.7]} 33. a5 {[%clk
0:00:03.6]} 33... Bxb3 {[%clk 0:00:40.8]} 34. a6 {[%clk 0:00:04.5]} 34... Bd5
{[%clk 0:00:40.9]} 35. Kf2 {[%clk 0:00:04.6]} 35... Na4 {[%clk 0:00:40.2]} 36.
Ke3 {[%clk 0:00:04.7]} 36... Nc5 {[%clk 0:00:40.2]} 37. a7 {[%clk 0:00:05.1]}
37... Ke7 {[%clk 0:00:37.3]} 38. f4 {[%clk 0:00:05.5]} 38... Bc6 {[%clk
0:00:35.8]} 39. Bf3 {[%clk 0:00:04.8]} 39... d5 {[%clk 0:00:34.7]} 40. Kd4
{[%clk 0:00:05.1]} 40... Kd6 {[%clk 0:00:35.2]} 41. f5 {[%clk 0:00:04.5]} 41...
Nb3+ {[%clk 0:00:32.8]} 42. Kd3 {[%clk 0:00:02.8]} 42... Nc5+ {[%clk 0:00:32.7]}
43. Kd4 {[%clk 0:00:02.9]} 43... Ne4 {[%clk 0:00:26.8]} 44. Bxe4 {[%clk
0:00:01.7]} 44... dxe4 {[%clk 0:00:27]} 45. g4 {[%clk 0:00:02.2]} 45... Bb7
{[%clk 0:00:24.1]} 46. g5 {[%clk 0:00:01.3]} 46... Ke7 {[%clk 0:00:24.1]} 47.
f6+ {[%clk 0:00:01.5]} 47... Ke6 {[%clk 0:00:24.2]} 48. h4 {[%clk 0:00:02]}
48... Kf7 {[%clk 0:00:24.1]} 49. Ke3 {[%clk 0:00:02.1]} 49... Kg6 {[%clk
0:00:24.2]} 50. Kf4 {[%clk 0:00:02.3]} 50... Kf7 {[%clk 0:00:22.4]} 51. h5
{[%clk 0:00:02.7]} 51... Ke6 {[%clk 0:00:21.9]} 52. Ke3 {[%clk 0:00:02.7]} 52...
Kf7 {[%clk 0:00:21.9]} 53. Kf4 {[%clk 0:00:02.4]} 53... Ba8 {[%clk 0:00:22]} 54.
Kf5 {[%clk 0:00:02.4]} 54... e3 {[%clk 0:00:21.9]} 55. g6+ {[%clk 0:00:03.3]}
55... hxg6+ {[%clk 0:00:22.2]} 56. hxg6+ {[%clk 0:00:04]} 56... Kg8 {[%clk
0:00:21.4]} 57. Kg5 {[%clk 0:00:04.4]} 57... e2 {[%clk 0:00:21.4]} 58. Kh6
{[%clk 0:00:04.9]} 58... e1=Q {[%clk 0:00:20.9]} 59. f7+ {[%clk 0:00:05.1]}
59... Kf8 {[%clk 0:00:21.3]} 60. g7+ {[%clk 0:00:05.3]} 60... Kxf7 {[%clk
0:00:21.7]} 0-1